fUSD/lending_fUSD_20240814
["ID","MTS","AMOUNT","RATE_DAILY","PERIOD"]
[334817869,1723603905638,-500.0,0.00014794,2]
[334817870,1723603905647,-500.0,0.00014794,2]
[334817871,1723603905656,-500.0,0.00014794,2]
[334817872,1723603905666,-500.0,0.00014794,2]
[334817873,1723603905675,-706.26,0.00014794,2]
[334817874,1723603905685,-500.0,0.00014794,2]
[334817875,1723603905694,-1609.88,0.00014794,2]
[334817876,1723603905703,-500.0,0.00014794,2]
[334817877,1723603905712,-500.0,0.00014794,2]
[334817878,1723603905721,-5273.3,0.00014794,2]
[334817879,1723603905731,-2545.62,0.00014794,2]
[334817880,1723603905741,-568.81,0.00014794,2]
[334817881,1723603905751,-185.75092155,0.00014794,2]
[334817882,1723603905761,-500.0,0.00014794,2]
[334817883,1723603905770,-500.0,0.00014794,2]
[334817884,1723603905779,-500.0,0.00014794,2]
[334817885,1723603905790,-615.8,0.00014794,2]
[334817886,1723603905801,-500.0,0.00014794,2]
[334817887,1723603905811,-500.0,0.00014794,2]
[334817888,1723603905820,-3500.04,0.00014794,2]
[334817889,1723603905830,-500.0,0.00014794,2]
[334817890,1723603905841,-505.7045235,0.00014794,2]
[334817891,1723603905850,-500.0,0.00014794,2]
[334817892,1723603905859,-1877.03,0.00014794,2]
[334817893,1723603905868,-500.0,0.00014794,2]
[334817894,1723603905877,-1389.67,0.00014794,2]
[334817895,1723603905887,-500.0,0.00014794,2]
[334817896,1723603905896,-500.0,0.00014794,2]
[334817897,1723603905908,-500.0,0.00014794,2]
[334817898,1723603905918,-1434.03,0.00014794,2]
[334817899,1723603905927,-3154.71,0.00014794,2]
[334817900,1723603905936,-623.26,0.00014794,2]
[334817901,1723603905945,-523.16,0.00014794,2]
[334817902,1723603905955,-500.0,0.00014794,2]
[334817903,1723603905967,-500.0,0.00014794,2]
[334817904,1723603905976,-500.0,0.00014794,2]
[334817905,1723603905986,-500.0,0.00014794,2]
[334817906,1723603905995,-609.2527755,0.00014794,2]
[334817907,1723603906006,-500.0,0.00014794,2]
[334817908,1723603906016,-500.0,0.00014794,2]
[334817909,1723603906025,-641.69,0.00014794,2]
[334817910,1723603906035,-500.0,0.00014794,2]
[334817911,1723603906045,-500.0,0.00014794,2]
[334817912,1723603906055,-500.0,0.00014794,2]
[334817913,1723603906064,-500.0,0.00014794,2]
[334817914,1723603906073,-908.77,0.00014794,2]
[334817915,1723603906082,-500.0,0.00014794,2]
[334817916,1723603906091,-500.0,0.00014794,2]
[334817917,1723603906101,-1000.0,0.00014794,2]
[334817918,1723603906110,-500.0,0.00014794,2]
[334817919,1723603906121,-500.0,0.00014794,2]
[334817920,1723603906130,-811.21,0.00014794,2]
[334817921,1723603906139,-500.0,0.00014794,2]
[334817922,1723603906149,-500.0,0.00014794,2]
[334817923,1723603906158,-500.0,0.00014794,2]
[334817924,1723603906168,-500.0,0.00014794,2]
[334817925,1723603906177,-577.33,0.00014794,2]
[334817926,1723603906186,-500.0,0.00014794,2]
[334817927,1723603906196,-472.01922242,0.00014794,2]
[334817928,1723603906206,-500.0,0.00014794,2]
[334817929,1723603906216,-1761.26,0.00014794,2]
[334817930,1723603906225,-500.0,0.00014794,2]
[334817931,1723603906234,-1716.91,0.00014794,2]
[334817932,1723603906244,-527.5,0.00014794,2]
[334817933,1723603906254,-613.43,0.00014794,2]
[334817934,1723603906263,-1089.5,0.00014794,2]
[334817935,1723603906272,-500.0,0.00014794,2]
[334817936,1723603906282,-728.17,0.00014794,2]
[334817937,1723603906291,-500.0,0.00014794,2]
[334817938,1723603906301,-500.0,0.00014794,2]
[334817939,1723603906311,-500.0,0.00014794,2]
[334817940,1723603906321,-664.03,0.00014794,2]
[334817941,1723603906331,-500.0,0.00014794,2]
[334817942,1723603906341,-545.68,0.00014794,2]
[334817943,1723603906351,-500.0,0.00014794,2]
[334817944,1723603906361,-1090.52,0.00014794,2]
[334817945,1723603906371,-2011.47,0.00014794,2]
[334817946,1723603906380,-550.26,0.00014794,2]
[334817947,1723603906390,-500.0,0.00014794,2]
[334817948,1723603906401,-1554.81,0.00014794,2]
[334817949,1723603906411,-502.14,0.00014794,2]
[334817950,1723603906421,-563.85,0.00014794,2]
[334817951,1723603906430,-500.0,0.00014794,2]
[334817952,1723603906440,-448.31269709,0.00014794,2]
[334817953,1723603906449,-921.71,0.00014794,2]
[334817954,1723603906459,-500.0,0.00014794,2]
[334817955,1723603906468,-823.6,0.00014794,2]
[334817956,1723603906478,-500.0,0.00014794,2]
[334817957,1723603906488,-610.78,0.00014794,2]
[334817958,1723603906497,-500.0,0.00014794,2]
[334817959,1723603906507,-1908.57,0.00014794,2]
[334817960,1723603906517,-511.56,0.00014794,2]
[334817961,1723603906526,-834.86,0.00014794,2]
[334817962,1723603906536,-500.0,0.00014794,2]
[334817963,1723603906545,-500.0,0.00014794,2]
[334817964,1723603906554,-500.0,0.00014794,2]
[334817965,1723603906563,-500.0,0.00014794,2]
[334817966,1723603906572,-500.0,0.00014794,2]
[334817967,1723603906581,-500.0,0.00014794,2]
[334817968,1723603906590,-626.84,0.00014794,2]
[334817969,1723603906600,-500.0,0.00014794,2]
[334817970,1723603906609,-1747.03,0.00014794,2]
[334817971,1723603906619,-500.0,0.00014794,2]
[334817972,1723603906629,-1408.06,0.00014794,2]
[334817973,1723603906638,-500.0,0.00014794,2]
[334817974,1723603906647,-754.97,0.00014794,2]
[334817975,1723603906657,-857.47,0.00014794,2]
[334817976,1723603906666,-500.0,0.00014794,2]
[334817977,1723603906676,-500.0,0.00014794,2]
[334817978,1723603906685,-500.0,0.00014794,2]
[334817979,1723603906694,-500.0,0.00014794,2]
[334817980,1723603906703,-1367.58,0.00014794,2]
[334817981,1723603906712,-681.21,0.00014794,2]
[334817982,1723603906721,-2349.72,0.00014794,2]
[334817983,1723603906730,-1319.2,0.00014794,2]
[334817984,1723603906740,-688.34,0.00014794,2]
[334817985,1723603906749,-500.0,0.00014794,2]
[334817986,1723603906758,-500.0,0.00014794,2]
[334817987,1723603906767,-695.72,0.00014794,2]
[334817988,1723603906776,-895.36,0.00014794,2]
[334817989,1723603906786,-500.0,0.00014794,2]
[334817990,1723603906795,-500.0,0.00014794,2]
[334817991,1723603906804,-683.22,0.00014794,2]
[334817992,1723603906814,-964.08,0.00014794,2]
[334817993,1723603906823,-500.0,0.00014794,2]
[334817994,1723603906832,-500.0,0.00014794,2]
[334817995,1723603906841,-500.0,0.00014794,2]
[334817996,1723603906850,-500.0,0.00014794,2]
[334817997,1723603906860,-500.0,0.00014794,2]
[334817998,1723603906869,-500.0,0.00014794,2]
[334817999,1723603906878,-1380.66,0.00014794,2]
[334818000,1723603907102,-500.0,0.00014794,2]
[334818001,1723603907111,-2027.17,0.00014794,2]
[334818002,1723603907120,-11342.33,0.00014794,2]
[334818003,1723603907130,-1367.54,0.00014794,2]
[334818004,1723603907139,-500.0,0.00014794,2]
[334818005,1723603907148,-500.0,0.00014794,2]
[334818006,1723603907157,-500.0,0.00014794,2]
[334818007,1723603907166,-500.0,0.00014794,2]
[334818008,1723603907177,-1444.2,0.00014794,2]
[334818009,1723603907186,-500.0,0.00014794,2]
[334818010,1723603907195,-500.0,0.00014794,2]
[334818011,1723603907204,-500.0,0.00014794,2]
[334818012,1723603907213,-4005.49,0.00014794,2]
[334818013,1723603907222,-500.0,0.00014794,2]
[334818014,1723603907231,-500.0,0.00014794,2]
[334818015,1723603907240,-8599.7,0.00014794,2]
[334818016,1723603907249,-500.0,0.00014794,2]
[334818017,1723603907259,-3471.08,0.00014794,2]
[334818018,1723603907268,-500.0,0.00014794,2]
[334818019,1723603907278,-500.0,0.00014794,2]
[334818020,1723603907287,-18529.58,0.00014794,2]
[334818021,1723603907296,-500.0,0.00014794,2]
[334818022,1723603907306,-1467.23,0.00014794,2]
[334818023,1723603907315,-500.0,0.00014794,2]
[334818024,1723603907324,-1447.84,0.00014794,2]
[334818025,1723603907334,-500.0,0.00014794,2]
[334818026,1723603907344,-500.0,0.00014794,2]
[334818027,1723603907353,-1090.94,0.00014794,2]
[334818028,1723603907362,-696.39,0.00014794,2]
[334818029,1723603907373,-3340.88,0.00014794,2]
[334818030,1723603907383,-500.0,0.00014794,2]
[334818031,1723603907392,-500.0,0.00014794,2]
[334818032,1723603907402,-500.0,0.00014794,2]
[334818033,1723603907411,-500.0,0.00014794,2]
[334818034,1723603907421,-500.0,0.00014794,2]
[334818035,1723603907430,-789.84,0.00014794,2]
[334818036,1723603907439,-188.3014653,0.00014794,2]
[334818037,1723603907448,-500.0,0.00014794,2]
[334818038,1723603907458,-1932.0,0.00014794,2]
[334818039,1723603907467,-4811.5,0.00014794,2]
[334818040,1723603907477,-16984.73,0.00014794,2]
[334818041,1723603907486,-500.0,0.00014794,2]
[334818042,1723603907495,-1408.21,0.00014794,2]
[334818043,1723603907504,-500.0,0.00014794,2]
[334818044,1723603907513,-500.0,0.00014794,2]
[334818045,1723603907523,-500.0,0.00014794,2]
[334818046,1723603907532,-3491.45,0.00014794,2]
[334818047,1723603907542,-1212.188302,0.00014794,2]
[334818048,1723603907551,-1212.188302,0.00014794,2]
[334818049,1723603907561,-615.57,0.00014794,2]
[334818050,1723603907570,-500.0,0.00014794,2]
[334818051,1723603907580,-627.0711432,0.00014794,2]
[334818052,1723603907591,-1049.0,0.00014794,2]
[334818053,1723603907603,-1741.08,0.00014794,2]
[334818054,1723603907613,-3462.69,0.00014794,2]
[334818055,1723603907623,-1212.188302,0.00014794,2]
[334818056,1723603907635,-1212.188302,0.00014794,2]
[334818057,1723603907644,-1076.68,0.00014794,2]
[334818058,1723603907654,-760.25,0.00014794,2]
[334818059,1723603907664,-547.29,0.00014794,2]
[334818060,1723603907673,-500.0,0.00014794,2]
[334818061,1723603907682,-500.0,0.00014794,2]
[334818062,1723603907692,-500.0,0.00014794,2]
[334818063,1723603907701,-503.38918912,0.00014794,2]
[334818064,1723603907710,-1201.41,0.00014794,2]
[334818065,1723603907719,-9705.83,0.00014794,2]
[334818066,1723603907728,-500.0,0.00014794,2]
[334818067,1723603907738,-500.0,0.00014794,2]
[334818068,1723603907747,-500.0,0.00014794,2]
[334818069,1723603907757,-500.0,0.00014794,2]
[334818070,1723603907766,-500.0,0.00014794,2]
[334818071,1723603907775,-500.0,0.00014794,2]
[334818072,1723603907784,-682.35,0.00014794,2]
[334818073,1723603907794,-21824.02,0.00014794,2]
[334818074,1723603907803,-500.0,0.00014794,2]
[334818075,1723603907813,-964.16,0.00014794,2]
[334818076,1723603907822,-728.58,0.00014794,2]
[334818077,1723603907832,-2013.72,0.00014794,2]
[334818078,1723603907841,-1369.46,0.00014794,2]
[334818079,1723603907851,-832.56,0.00014794,2]
[334818080,1723603907860,-2899.28,0.00014794,2]
[334818081,1723603907870,-953.43,0.00014794,2]
[334818082,1723603907883,-4067.6,0.00014794,2]
[334818083,1723603907893,-1756.12,0.00014794,2]
[334818084,1723603907903,-500.0,0.00014794,2]
[334818085,1723603907912,-664.79,0.00014794,2]
[334818086,1723603907921,-500.0,0.00014794,2]
[334818087,1723603907931,-822.46,0.00014794,2]
[334818088,1723603907940,-500.0,0.00014794,2]
[334818089,1723603907950,-658.27,0.00014794,2]
[334818090,1723603907963,-767.26,0.00014794,2]
[334818091,1723603907972,-500.0,0.00014794,2]
[334818092,1723603907983,-1097.99,0.00014794,2]
[334818093,1723603907994,-547.57,0.00014794,2]
[334818094,1723603908005,-1115.22,0.00014794,2]
[334818095,1723603908014,-1272.25,0.00014794,2]
[334818096,1723603908026,-500.0,0.00014794,2]
[334818097,1723603908036,-531.71,0.00014794,2]
[334818098,1723603908046,-723.33,0.00014794,2]
[334818099,1723603908055,-3348.83,0.00014794,2]
[334818100,1723603908065,-1223.52,0.00014794,2]
[334818101,1723603908074,-500.0,0.00014794,2]
[334818102,1723603908084,-2161.17,0.00014794,2]
[334818103,1723603908094,-500.0,0.00014794,2]
[334818104,1723603908103,-500.0,0.00014794,2]
[334818105,1723603908112,-6910.51,0.00014794,2]
[334818106,1723603908121,-609.36,0.00014794,2]
[334818107,1723603908133,-500.0,0.00014794,2]
[334818108,1723603908143,-880.05,0.00014794,2]
[334818109,1723603908153,-500.0,0.00014794,2]
[334818110,1723603908162,-1173.02,0.00014794,2]
[334818111,1723603908171,-500.0,0.00014794,2]
[334818112,1723603908181,-2224.37,0.00014794,2]
[334818113,1723603908190,-1181.05,0.00014794,2]
[334818114,1723603908199,-500.0,0.00014794,2]
[334818115,1723603908208,-500.0,0.00014794,2]
[334818116,1723603908217,-500.0,0.00014794,2]
[334818117,1723603908226,-725.28,0.00014794,2]
[334818118,1723603908235,-500.0,0.00014794,2]
[334818119,1723603908244,-500.0,0.00014794,2]
[334818120,1723603908253,-500.0,0.00014794,2]
[334818121,1723603908263,-3779.35,0.00014794,2]
[334818122,1723603908272,-9040.84,0.00014794,2]
[334818123,1723603908282,-1046.28,0.00014794,2]
[334818124,1723603908292,-1939.79,0.00014794,2]
[334818125,1723603908301,-1333.4,0.00014794,2]
[334818126,1723603908311,-767.18,0.00014794,2]
[334818127,1723603908320,-1164.04,0.00014794,2]
[334818128,1723603908330,-500.0,0.00014794,2]
[334818129,1723603908339,-500.0,0.00014794,2]
[334818130,1723603908348,-500.0,0.00014794,2]
[334818131,1723603908359,-500.0,0.00014794,2]
[334818132,1723603908368,-500.0,0.00014794,2]
[334818133,1723603908377,-500.0,0.00014794,2]
[334818134,1723603908390,-1701.51,0.00014794,2]
[334818135,1723603908401,-500.0,0.00014794,2]
[334818136,1723603908411,-1301.52,0.00014794,2]
[334818137,1723603908420,-6185.17,0.00014794,2]
[334818138,1723603908430,-500.0,0.00014794,2]
[334818139,1723603908439,-500.0,0.00014794,2]
[334818140,1723603908448,-500.0,0.00014794,2]
[334818141,1723603908458,-400.0,0.00014794,2]
[334818142,1723603908467,-3208.28,0.00014794,2]
[334818143,1723603908477,-1318.76,0.00014794,2]
[334818144,1723603908487,-800.93,0.00014794,2]
[334818145,1723603908496,-1811.7,0.00014794,2]
[334818146,1723603908505,-566.62,0.00014794,2]
[334818147,1723603908514,-1246.41,0.00014794,2]
[334818148,1723603908524,-3837.15,0.00014794,2]
[334818149,1723603908534,-500.0,0.00014794,2]
[334818150,1723603908544,-1088.88,0.00014794,2]
[334818151,1723603908553,-749.39,0.00014794,2]
[334818152,1723603908562,-500.0,0.00014794,2]
[334818153,1723603908571,-3163.1,0.00014794,2]
[334818154,1723603908580,-500.0,0.00014794,2]
[334818155,1723603908595,-500.0,0.00014794,2]
[334818156,1723603908614,-3420.09,0.00014794,2]
[334818157,1723603908630,-6114.43,0.00014794,2]
[334818158,1723603908648,-2037.52,0.00014794,2]
[334818159,1723603908667,-63525.08,0.00014794,2]
[334818160,1723603908684,-622.28,0.00014794,2]
[334818161,1723603908703,-978.75,0.00014794,2]
[334818162,1723603908718,-507.32917649,0.00014794,2]
[334818163,1723603908733,-500.0,0.00014794,2]
[334818164,1723603908750,-500.0,0.00014794,2]
[334818165,1723603908769,-500.0,0.00014794,2]
[334818166,1723603908784,-22338.65,0.00014794,2]
[334818167,1723603908799,-3038.65,0.00014794,2]
[334818168,1723603908815,-500.0,0.00014794,2]
[334818169,1723603908831,-518.31,0.00014794,2]
[334818170,1723603908845,-3343.58,0.00014794,2]
[334818171,1723603908862,-500.0,0.00014794,2]
[334818172,1723603908877,-2760.28,0.00014794,2]
[334818173,1723603908894,-500.0,0.00014794,2]
[334818174,1723603908911,-1040.52,0.00014794,2]
[334818175,1723603908926,-3325.87,0.00014794,2]
[334818176,1723603908942,-1000.0,0.00014794,2]
[334818177,1723603908959,-1095.39,0.00014794,2]
[334818178,1723603908975,-523.71890201,0.00014794,2]
[334818179,1723603908990,-773.26,0.00014794,2]
[334818180,1723603909005,-500.0,0.00014794,2]
[334818181,1723603909020,-8871.6,0.00014794,2]
[334818182,1723603909036,-500.0,0.00014794,2]
[334818183,1723603909053,-4053.29,0.00014794,2]
[334818184,1723603909068,-500.0,0.00014794,2]
[334818185,1723603909084,-500.0,0.00014794,2]
[334818186,1723603909099,-151.0,0.00014794,2]
[334818187,1723603909114,-500.0,0.00014794,2]
[334818188,1723603909129,-151.0,0.00014794,2]
[334818189,1723603909146,-292.74037,0.00014794,2]
[334818190,1723603909161,-1012.12,0.00014794,2]
[334818191,1723603909175,-500.0,0.00014794,2]
[334818192,1723603909190,-1400.49,0.00014794,2]
[334818193,1723603909205,-500.0,0.00014794,2]
[334818194,1723603909220,-574.76,0.00014794,2]
[334818195,1723603909235,-948.38,0.00014794,2]
[334818196,1723603909251,-1923.55,0.00014794,2]
[334818197,1723603909267,-500.0,0.00014794,2]
[334818198,1723603909283,-756.47,0.00014794,2]
[334818199,1723603909297,-1806.66,0.00014794,2]
[334818200,1723603909313,-1028.89,0.00014794,2]
[334818201,1723603909328,-500.0,0.00014794,2]
[334818202,1723603909343,-5711.31,0.00014794,2]
[334818203,1723603909358,-500.0,0.00014794,2]
[334818204,1723603909373,-5949.67,0.00014794,2]
[334818205,1723603909389,-500.0,0.00014794,2]
[334818206,1723603909404,-2287.9,0.00014794,2]
[334818207,1723603909435,-500.0,0.00014794,2]
[334818208,1723603909459,-500.0,0.00014794,2]
[334818209,1723603909481,-1165.14,0.00014794,2]
[334818210,1723603909501,-500.0,0.00014794,2]
[334818211,1723603909522,-500.0,0.00014794,2]
[334818212,1723603909542,-500.0,0.00014794,2]
[334818213,1723603909561,-500.0,0.00014794,2]
[334818214,1723603909581,-3527.81,0.00014794,2]
[334818215,1723603909597,-500.0,0.00014794,2]
[334818216,1723603909613,-503.89,0.00014794,2]
[334818217,1723603909631,-500.0,0.00014794,2]
[334818218,1723603909648,-657.34,0.00014794,2]
[334818219,1723603909664,-4643.86,0.00014794,2]
[334818220,1723603909680,-5304.78,0.00014794,2]
[334818221,1723603909696,-500.0,0.00014794,2]
[334818222,1723603909713,-500.0,0.00014794,2]
[334818223,1723603909731,-793.68,0.00014794,2]
[334818224,1723603909746,-1291.51,0.00014794,2]
[334818225,1723603909759,-500.0,0.00014794,2]
[334818226,1723603909775,-3534.72,0.00014794,2]
[334818227,1723603909791,-866.3,0.00014794,2]
[334818228,1723603909808,-4085.63,0.00014794,2]
[334818229,1723603909825,-500.0,0.00014794,2]
[334818230,1723603909842,-500.0,0.00014794,2]
[334818231,1723603909859,-500.0,0.00014794,2]
[334818232,1723603909874,-1860.39,0.00014794,2]
[334818233,1723603909889,-500.0,0.00014794,2]
[334818234,1723603909903,-500.0,0.00014794,2]
[334818235,1723603909918,-500.0,0.00014794,2]
[334818236,1723603909934,-500.0,0.00014794,2]
[334818237,1723603909950,-8721.03,0.00014794,2]
[334818238,1723603909967,-545.46,0.00014794,2]
[334818239,1723603909982,-500.0,0.00014794,2]
[334818240,1723603909997,-500.0,0.00014794,2]
[334818241,1723603910014,-505.23,0.00014794,2]
[334818242,1723603910029,-2674.62,0.00014794,2]
[334818243,1723603910046,-500.0,0.00014794,2]
[334818244,1723603910061,-726.24,0.00014794,2]
[334818245,1723603910083,-1060.17,0.00014794,2]
[334818246,1723603910098,-500.0,0.00014794,2]
[334818247,1723603910113,-500.0,0.00014794,2]
[334818248,1723603910127,-2300.78,0.00014794,2]
[334818249,1723603910145,-1807.13,0.00014794,2]
[334818250,1723603910160,-500.0,0.00014794,2]
[334818251,1723603910175,-1069.54,0.00014794,2]
[334818252,1723603910190,-500.0,0.00014794,2]
[334818253,1723603910206,-4235.05,0.00014794,2]
[334818254,1723603910223,-500.0,0.00014794,2]
[334818255,1723603910239,-9482.49,0.00014794,2]
[334818256,1723603910253,-264.53717617,0.00014794,2]
[334818257,1723603910270,-3912.2,0.00014794,2]
[334818258,1723603910284,-1133.78,0.00014794,2]
[334818259,1723603910299,-674.92,0.00014794,2]
[334818260,1723603910312,-500.0,0.00014794,2]
[334818261,1723603910327,-500.0,0.00014794,2]
[334818262,1723603910342,-700.06,0.00014794,2]
[334818263,1723603910356,-500.0,0.00014794,2]
[334818264,1723603910370,-3352.95,0.00014794,2]
[334818265,1723603910385,-315.12982934,0.00014794,2]
[334818266,1723603910401,-550.05,0.00014794,2]
[334818267,1723603910415,-500.0,0.00014794,2]
[334818268,1723603910431,-5658.96,0.00014794,2]
[334818269,1723603910446,-500.0,0.00014794,2]
[334818270,1723603910461,-1004.73,0.00014794,2]
[334818271,1723603910476,-500.0,0.00014794,2]
[334818272,1723603910491,-4266.51,0.00014794,2]
[334818273,1723603910506,-2152.34,0.00014794,2]
[334818274,1723603910521,-573.39657291,0.00014794,2]
[334818275,1723603910537,-2495.73,0.00014794,2]
[334818276,1723603910552,-500.0,0.00014794,2]
[334818277,1723603910566,-500.0,0.00014794,2]
[334818278,1723603910582,-500.0,0.00014794,2]
[334818279,1723603910598,-3010.43,0.00014794,2]
[334818280,1723603910614,-712.46,0.00014794,2]
[334818281,1723603910630,-1442.97,0.00014794,2]
[334818282,1723603910644,-500.0,0.00014794,2]
[334818283,1723603910659,-500.0,0.00014794,2]
[334818284,1723603910672,-4860.84,0.00014794,2]
[334818285,1723603910686,-936.95,0.00014794,2]
[334818286,1723603910702,-500.0,0.00014794,2]
[334818287,1723603910716,-2182.64,0.00014794,2]
[334818288,1723603910732,-545.37,0.00014794,2]
[334818289,1723603910746,-500.0,0.00014794,2]
[334818290,1723603910761,-517.19,0.00014794,2]
[334818291,1723603910774,-972.49,0.00014794,2]
[334818292,1723603910789,-500.0,0.00014794,2]
[334818293,1723603910804,-5817.55,0.00014794,2]
[334818294,1723603910818,-500.0,0.00014794,2]
[334818295,1723603910833,-16358.47,0.00014794,2]
[334818296,1723603910847,-500.0,0.00014794,2]
[334818297,1723603910862,-500.0,0.00014794,2]
[334818298,1723603910876,-1343.6,0.00014794,2]
[334818299,1723603910891,-1852.9,0.00014794,2]
[334818300,1723603910905,-500.0,0.00014794,2]
[334818301,1723603910919,-1032.88,0.00014794,2]
[334818302,1723603910933,-500.0,0.00014794,2]
[334818303,1723603910947,-1649.15,0.00014794,2]
[334818304,1723603910966,-12284.49,0.00014794,2]
[334818305,1723603910979,-1289.77,0.00014794,2]
[334818306,1723603910994,-500.0,0.00014794,2]
[334818307,1723603911008,-500.0,0.00014794,2]
[334818308,1723603911022,-500.0,0.00014794,2]
[334818309,1723603911036,-3024.67,0.00014794,2]
[334818310,1723603911051,-571.44,0.00014794,2]
[334818311,1723603911065,-1347.07,0.00014794,2]
[334818312,1723603911387,-601.062028,0.00014794,2]
[334818313,1723603911406,-500.0,0.00014794,2]
[334818314,1723603911415,-500.0,0.00014794,2]
[334818315,1723603911425,-500.0,0.00014794,2]
[334818316,1723603911435,-500.0,0.00014794,2]
[334818317,1723603911445,-2375.11,0.00014794,2]
[334818318,1723603911454,-5867.25,0.00014794,2]
[334818319,1723603911463,-1236.61,0.00014794,2]
[334818320,1723603911472,-15446.76,0.00014794,2]
[334818321,1723603911482,-500.0,0.00014794,2]
[334818322,1723603911491,-1109.97,0.00014794,2]
[334818323,1723603911500,-811.27,0.00014794,2]
[334818324,1723603911509,-500.0,0.00014794,2]
[334818325,1723603911519,-500.0,0.00014794,2]
[334818326,1723603911528,-500.0,0.00014794,2]
[334818327,1723603911537,-500.0,0.00014794,2]
[334818328,1723603911546,-1183.37,0.00014794,2]
[334818329,1723603911555,-500.0,0.00014794,2]
[334818330,1723603911565,-1985.01,0.00014794,2]
[334818331,1723603911574,-500.0,0.00014794,2]
[334818332,1723603911583,-500.0,0.00014794,2]
[334818333,1723603911592,-500.0,0.00014794,2]
[334818334,1723603911601,-500.0,0.00014794,2]
[334818335,1723603911611,-505.76,0.00014794,2]
[334818336,1723603911619,-3394.27,0.00014794,2]
[334818337,1723603911628,-500.0,0.00014794,2]
[334818338,1723603911638,-500.0,0.00014794,2]
[334818339,1723603911647,-2263.87,0.00014794,2]
[334818340,1723603911656,-2351.17,0.00014794,2]
[334818341,1723603911666,-504.63,0.00014794,2]
[334818342,1723603911676,-2208.39,0.00014794,2]
[334818343,1723603911685,-500.0,0.00014794,2]
[334818344,1723603911695,-500.0,0.00014794,2]
[334818345,1723603911704,-500.0,0.00014794,2]
[334818346,1723603911713,-534.4,0.00014794,2]
[334818347,1723603911724,-1991.48,0.00014794,2]
[334818348,1723603911733,-1195.4,0.00014794,2]
[334818349,1723603911743,-9415.38,0.00014794,2]
[334818350,1723603911752,-304.194904,0.00014794,2]
[334818351,1723603911762,-500.0,0.00014794,2]
[334818352,1723603911771,-500.0,0.00014794,2]
[334818353,1723603911781,-304.194904,0.00014794,2]
[334818354,1723603911791,-694.34,0.00014794,2]
[334818355,1723603911800,-5022.91,0.00014794,2]
[334818356,1723603911810,-500.0,0.00014794,2]
[334818357,1723603911819,-304.194904,0.00014794,2]
[334818358,1723603911829,-3719.98,0.00014794,2]
[334818359,1723603911838,-2311.62,0.00014794,2]
[334818360,1723603911848,-304.194904,0.00014794,2]
[334818361,1723603911857,-304.194904,0.00014794,2]
[334818362,1723603911866,-3286.97,0.00014794,2]
[334818363,1723603911876,-304.194903,0.00014794,2]
[334818364,1723603911886,-500.0,0.00014794,2]
[334818365,1723603911896,-2601.74,0.00014794,2]
[334818366,1723603911905,-500.0,0.00014794,2]
[334818367,1723603911915,-925.2,0.00014794,2]
[334818368,1723603911924,-500.0,0.00014794,2]